[Event "41th GRE-ch Women 2018"]
[Site "Thessaloniki"]
[Date "2018.12.13"]
[Round "2"]
[White "Skaraki, Antigoni"]
[Black "Fragkou, Eleni"]
[Result "0-1"]
[ECO "C47"]
[WhiteElo "2012"]
[BlackElo "2031"]
[Annotator "NA"]
[PlyCount "90"]
[EventDate "2018.12.12"]
[EventType "tourn"]
[EventCountry "GRE"]
[SourceTitle "playchess.com"]
[Source "ChessBase"]
[SourceQuality "1"]
[TimeControl "40/5400+30:1800+30"]

1. e4 {[%emt 0:00:00]} e5 {[%emt 0:00:00]} 2. Nf3 {[%emt 0:00:00]} Nc6 {[%emt 0:00:02]} 3. Nc3 {[%emt 0:00:00]} Nf6 {[%emt 0:00:14]} 4. d4 {[%emt 0:00:00]} exd4 {[%emt 0:00:17]} 5. Nxd4 {[%emt 0:00:01]} Bb4 {[%emt 0:00:26]} 6. Nxc6 {[%emt 0:00:05]} bxc6 {[%emt 0:00:19]} 7. Bd3 {[%emt 0:00:07]} d5 {[%emt 0:02:15]} 8. exd5 cxd5 {[%emt 0:00:34]} 9. O-O {[%emt 0:00:26]} O-O {[%emt 0:00:39]} 10. h3 {[%emt 0:00:26]} h6 {[%emt 0:01:49]} 11. Qf3 {[%emt 0:00:35]} c6 {[%emt 0:01:56]} 12. Bf4 {[%emt 0:00:21]} a5 {[%emt 0:09:22]} 13. Ne2 $11 {[%emt 0:20:15]} Bc5 {[%emt 0:43:07]} 14. Rfe1 {[%emt 0:08:16]} Re8 {[%emt 0:09:58]} 15. Ng3 {[%emt 0:01:56]} Be6 {[%emt 0:01:54]} 16. Rad1 {[%emt 0:17:33]} Nh7 {[%emt 0:06:11]} 17. Bxh6 {[%emt 0:33:55]} gxh6 {[%emt 0:02:30]} 18. Bxh7+ {[%emt 0:00:02]} Kxh7 {[%emt 0:02:10]} 19. Nh5 {[%emt 0:02:39]} Qg5 {[%emt 0:10:30]} 20. Nf6+ {[%emt 0:04:57]} Kg7 {[%emt 0:02:41]} 21. Nxe8+ {[%emt 0:00:18]} Rxe8 {[%emt 0:00:05]} 22. h4 {[%emt 0:02:10]} Qf6 {[%emt 0:00:15]} 23. Rd3 {[%emt 0:06:36]} Qxf3 {[%emt 0:00:20]} 24. Rxf3 {[%emt 0:00:01]} Rb8 {[%emt 0:00:26]} 25. b3 {[%emt 0:00:21]} Rb4 {[%emt 0:00:17]} 26. g3 {[%emt 0:00:37]} Rd4 {[%emt 0:02:54]} 27. Kg2 {[%emt 0:01:10]} Rd2 {[%emt 0:00:16]} 28. c4 {[%emt 0:00:32]} Rxa2 {[%emt 0:00:19]} 29. Rc1 {[%emt 0:00:23]} Ba3 {[%emt 0:01:11]} 30. Rcc3 {[%emt 0:00:21]} Bb4 {[%emt 0:00:56]} 31. Rc1 {[%emt 0:00:22]} Bd2 {[%emt 0:00:23]} 32. cxd5 Bxd5 {[%emt 0:00:08]} 33. Rd1 {[%emt 0:01:29]} Bxf3+ {[%emt 0:00:40]} 34. Kxf3 {[%emt 0:00:03]} Bb4 {[%emt 0:00:27]} 35. Rc1 {[%emt 0:00:54]} c5 {[%emt 0:00:31]} 36. g4 {[%emt 0:00:16]} Rb2 {[%emt 0:00:14]} 37. g5 {[%emt 0:00:17]} Rxb3+ {[%emt 0:00:06]} 38. Kg4 {[%emt 0:00:04]} hxg5 {[%emt 0:00:12]} 39. hxg5 {[%emt 0:00:23]} a4 {[%emt 0:01:16]} 40. f4 {[%emt 0:00:00]} Ba3 {[%emt 0:00:00]} 41. Ra1 {[%emt 0:12:58]} c4 {[%emt 0:05:39]} 42. f5 {[%emt 0:00:10]} c3 {[%emt 0:00:42]} 43. f6+ {[%emt 0:00:53]} Kg6 {[%emt 0:00:27]} 44. Ra2 {[%emt 0:01:35]} Rb4+ {[%emt 0:00:08]} 45. Kf3 {[%emt 0:00:28]} Bb2 {[%emt 0:00:08]} 0-1

[Event "41th GRE-ch Women 2018"]
[Site "Thessaloniki"]
[Date "2018.12.13"]
[Round "2"]
[White "Nikolaidou, Eleni"]
[Black "Petraki, Evaggelia"]
[Result "1/2-1/2"]
[ECO "B50"]
[WhiteElo "1707"]
[BlackElo "1756"]
[Annotator "NA"]
[PlyCount "122"]
[EventDate "2018.12.12"]
[EventType "tourn"]
[EventCountry "GRE"]
[SourceTitle "playchess.com"]
[Source "ChessBase"]
[SourceQuality "1"]
[TimeControl "40/5400+30:1800+30"]

1. e4 {[%emt 0:00:00]} c5 {[%emt 0:00:00]} 2. Nf3 {[%emt 0:00:00]} d6 {[%emt 0:00:00]} 3. c3 {[%emt 0:00:00]} Nf6 {[%emt 0:00:00]} 4. Bc4 {[%emt 0:00:32]} e6 {[%emt 0:00:00]} 5. d3 {[%emt 0:01:50]} a6 {[%emt 0:00:28]} 6. O-O {[%emt 0:03:19]} b5 {[%emt 0:00:33]} 7. Bb3 {[%emt 0:00:06]} Bb7 {[%emt 0:00:32]} 8. Qe2 {[%emt 0:05:43]} Nbd7 {[%emt 0:04:53]} 9. Nbd2 {[%emt 0:08:23]} Be7 {[%emt 0:10:25]} 10. Ng5 {[%emt 0:19:56]} h6 {[%emt 0:08:43]} 11. Nh3 {[%emt 0:01:21]} Qb6 {[%emt 0:02:33]} 12. a4 {[%emt 0:03:10]} O-O {[%emt 0:02:26]} 13. a5 {[%emt 0:00:48]} Qc7 {[%emt 0:00:24]} 14. f4 {[%emt 0:15:04]} Rfc8 {[%emt 0:05:15]} 15. Bc2 {[%emt 0:10:08]} e5 {[%emt 0:13:10]} 16. Nf3 {[%emt 0:07:08]} Qc6 {[%emt 0:12:16]} 17. fxe5 {[%emt 0:11:14]} dxe5 {[%emt 0:01:14]} 18. Nh4 {[%emt 0:00:50]} c4 {[%emt 0:01:32]} 19. Nf5 {[%emt 0:00:40]} Bf8 {[%emt 0:07:19]} 20. dxc4 {[%emt 0:01:34]} Qxc4 {[%emt 0:00:27]} 21. Qxc4 {[%emt 0:00:28]} Rxc4 {[%emt 0:00:09]} 22. Bd3 {[%emt 0:01:14]} Rc7 {[%emt 0:00:49]} 23. Nf2 {[%emt 0:02:41]} Nc5 {[%emt 0:01:13]} 24. Bc2 {[%emt 0:01:41]} Ncxe4 {[%emt 0:04:18]} 25. Nxe4 {[%emt 0:00:38]} Nxe4 {[%emt 0:00:15]} 26. Be3 {[%emt 0:01:14]} Rd7 {[%emt 0:08:17]} 27. Rad1 {[%emt 0:01:02]} Rad8 {[%emt 0:00:30]} 28. Rxd7 {[%emt 0:00:24]} Rxd7 {[%emt 0:00:03]} 29. Rd1 {[%emt 0:02:25]} Rxd1+ {[%emt 0:00:04]} 30. Bxd1 {[%emt 0:00:05]} Nd6 {[%emt 0:00:18]} 31. Nxd6 {[%emt 0:00:36]} Bxd6 {[%emt 0:00:04]} 32. g4 {[%emt 0:00:39]} Kf8 {[%emt 0:01:08]} 33. Kf2 {[%emt 0:00:30]} Ke7 {[%emt 0:01:14]} 34. Bb3 {[%emt 0:00:57]} Bc7 {[%emt 0:01:51]} 35. Bc5+ {[%emt 0:00:11]} Ke8 {[%emt 0:00:09]} 36. Bb4 {[%emt 0:00:27]} g6 {[%emt 0:05:26]} 37. Ke3 {[%emt 0:00:37]} f5 {[%emt 0:00:33]} 38. gxf5 {[%emt 0:00:09]} gxf5 {[%emt 0:00:04]} 39. Be6 {[%emt 0:01:05]} f4+ {[%emt 0:00:29]} 40. Kf2 {[%emt 0:00:00]} e4 {[%emt 0:00:00]} 41. Bg4 {[%emt 0:15:19]} Kf7 {[%emt 0:05:37]} 42. b3 {[%emt 0:01:45]} Be5 {[%emt 0:00:51]} 43. c4 {[%emt 0:01:26]} Bd4+ {[%emt 0:04:47]} 44. Kf1 {[%emt 0:01:43]} bxc4 {[%emt 0:02:51]} 45. bxc4 {[%emt 0:00:07]} e3 {[%emt 0:01:42]} 46. Ke2 {[%emt 0:01:02]} Kf6 {[%emt 0:01:36]} 47. h4 {[%emt 0:01:49]} Ke5 {[%emt 0:03:37]} 48. Bf8 {[%emt 0:00:30]} Bg2 {[%emt 0:00:38]} 49. Bf3 {[%emt 0:02:11]} Bxf3+ {[%emt 0:02:18]} 50. Kxf3 {[%emt 0:00:07]} Kf5 {[%emt 0:07:21]} 51. Bxh6 {[%emt 0:00:19]} Bc3 {[%emt 0:00:17]} 52. c5 {[%emt 0:02:27]} Bxa5 {[%emt 0:00:04]} 53. c6 {[%emt 0:02:05]} Bc7 {[%emt 0:03:06]} 54. Bf8 {[%emt 0:04:05]} a5 {[%emt 0:02:00]} 55. h5 {[%emt 0:00:41]} Kg5 {[%emt 0:04:37]} 56. h6 {[%emt 0:00:13]} Kg6 {[%emt 0:00:05]} 57. Ke2 {[%emt 0:00:39]} a4 {[%emt 0:00:12]} 58. Kf3 {[%emt 0:01:00]} Kh7 {[%emt 0:00:06]} 59. Ke2 {[%emt 0:00:55]} Kg8 {[%emt 0:00:08]} 60. Bc5 {[%emt 0:00:59]} Kh7 {[%emt 0:01:06]} 61. Bf8 {[%emt 0:00:12]} Kg8 {[%emt 0:03:05]} 1/2-1/2

[Event "41th GRE-ch Women 2018"]
[Site "Thessaloniki"]
[Date "2018.12.14"]
[Round "3"]
[White "Fragkou, Eleni"]
[Black "Nikolaidou, Eleni"]
[Result "0-1"]
[ECO "B32"]
[WhiteElo "2031"]
[BlackElo "1707"]
[Annotator "NA RC"]
[PlyCount "64"]
[EventDate "2018.12.12"]
[EventType "tourn"]
[EventCountry "GRE"]
[SourceTitle "playchess.com"]
[Source "ChessBase"]
[SourceQuality "1"]
[TimeControl "40/5400+30:1800+30"]

{[%evp 10,36,49,32767,32767,27,39,-5,41,25,30,1,20,26,62,19,21,25,21,35,52,29,43,40,33,67,81,22,52]} 1. e4 {[%emt 0:00:00]} c5 {[%emt 0:00:00]} 2. Nf3 {[%emt 0:00:14]} Nc6 {[%emt 0:00:00]} 3. d4 {[%emt 0:00:10]} cxd4 {[%emt 0:00:00]} 4. Nxd4 {[%emt 0:00:11]} d6 {[%emt 0:00:30]} 5. c4 {[%emt 0:04:37]} Qb6 {[%emt 0:03:09]} 6. Nb5 {[%emt 0:05:19]} Nf6 {[%emt 0:05:57]} 7. Bd3 {[%emt 0:15:16]} (7. N1c3 $16) 7... Bg4 {[%emt 0:09:43]} 8. Qa4 {[%emt 0:16:56]} a6 {[%emt 0:01:13]} (8... Nd7 $5 {[%cal Rd7c5]} 9. Be3 Nc5 10. Bxc5 dxc5 $15) 9. Be3 {[%emt 0:06:01]} Qd8 {[%emt 0:00:19]} 10. N5c3 {[%emt 0:03:58]} Bd7 {[%emt 0:02:34]} 11. Qb3 {[%emt 0:12:59]} Ne5 {[%emt 0:08:15]} 12. Nd5 {[%emt 0:06:29]} Nxd5 {[%emt 0:01:03]} 13. exd5 {[%emt 0:00:06]} Nxd3+ {[%emt 0:00:15]} 14. Qxd3 {[%emt 0:00:07]} b5 {[%emt 0:00:55]} 15. Nc3 {[%emt 0:02:28]} bxc4 {[%emt 0:03:48]} 16. Qxc4 {[%emt 0:00:41]} e5 {[%emt 0:03:45]} 17. dxe6 $1 {[%emt 0:05:19]} fxe6 {[%emt 0:00:09]} 18. O-O $11 {[%emt 0:10:05]} Be7 {[%emt 0:00:12]} 19. a4 {[%emt 0:04:08]} O-O {[%emt 0:00:36]} 20. Rfd1 {[%emt 0:00:44]} Qc8 {[%emt 0:02:20]} 21. Qd3 {[%emt 0:02:04]} Rb8 {[%emt 0:02:36]} 22. Bd4 {[%emt 0:01:49]} Rb4 {[%emt 0:14:37]} 23. Qg3 {[%emt 0:00:52]} Rf7 {[%emt 0:02:30]} 24. Rac1 {[%emt 0:00:35]} Qb7 {[%emt 0:01:11]} 25. a5 {[%emt 0:00:15]} e5 {[%emt 0:06:07]} 26. Nd5 {[%emt 0:00:32]} Qxd5 {[%emt 0:05:49]} 27. Bc3 {[%emt 0:00:10]} Rd4 {[%emt 0:00:50]} 28. Bxd4 {[%emt 0:00:11]} exd4 {[%emt 0:00:08]} 29. Qd3 {[%emt 0:01:15]} Bc6 {[%emt 0:07:35]} 30. f3 {[%emt 0:00:03]} Bg5 {[%emt 0:00:41]} 31. Rc4 {[%emt 0:01:17]} Be3+ {[%emt 0:01:33]} 32. Kh1 {[%emt 0:00:33]} Qxf3 {[%emt 0:03:59]} 0-1

[Event "41th GRE-ch Women 2018"]
[Site "Thessaloniki"]
[Date "2018.12.14"]
[Round "3"]
[White "Tsivelekidou, Evgenia"]
[Black "Makka, Ioulia"]
[Result "0-1"]
[ECO "A40"]
[WhiteElo "1861"]
[BlackElo "2065"]
[Annotator "NA RC"]
[PlyCount "126"]
[EventDate "2018.12.12"]
[EventType "tourn"]
[EventCountry "GRE"]
[SourceTitle "playchess.com"]
[Source "ChessBase"]
[SourceQuality "1"]
[TimeControl "40/5400+30:1800+30"]

1. d4 {[%emt 0:00:00]} Nf6 {[%emt 0:00:00]} 2. c4 {[%emt 0:00:00]} e6 {[%emt 0:00:00]} 3. g3 {[%emt 0:00:00]} Bb4+ {[%emt 0:00:18]} 4. Bd2 {[%emt 0:00:00]} Qe7 {[%emt 0:00:10]} 5. Bg2 {[%emt 0:00:13]} Nc6 {[%emt 0:01:03]} 6. e3 {[%emt 0:00:46]} d5 {[%emt 0:04:44] LiveBook: 4 Games E00: Catalan Bogo-Indian (3 g3 Bb4+)} (6... O-O 7. Ne2 d5 8. O-O dxc4 9. Qc2 Bd6 10. Qxc4 e5 11. d5 Nb8 12. Nbc3 a6 13. a4 Re8 14. e4 {0-1 (64) Socko,B (2593)-Wang,Y (2690) Riadh 2017}) 7. Nf3 {[%emt 0:04:46]} O-O {[%emt 0:08:00]} 8. O-O {[%emt 0:01:49]} b6 {[%emt 0:08:47]} 9. Qa4 $146 {[%emt 0:09:20]} ({Predecessor:} 9. Qc2 Bb7 10. a3 Bxd2 11. Nbxd2 a5 12. Rac1 Rfd8 13. Rfd1 Rac8 14. Qb3 {½-½ (28) Urban,K (2470)-Pedzich,D (2445) Poznan 1996}) 9... Bb7 {[%emt 0:08:39]} 10. Ne5 {[%emt 0:07:23]} Bxd2 $1 {[%emt 0:02:25]} 11. Nxc6 {[%emt 0:02:50]} Qd7 {[%emt 0:01:41]} 12. Nxd2 {[%emt 0:07:23]} Bxc6 {[%emt 0:02:50]} 13. Qc2 {[%emt 0:02:03]} dxc4 {[%emt 0:08:29]} 14. Bxc6 {[%emt 0:02:33]} Qxc6 {[%emt 0:00:05]} 15. Qxc4 {[%emt 0:00:57]} Qd7 {[%emt 0:14:47]} 16. Rfd1 {[%emt 0:03:56]} Rfc8 {[%emt 0:01:22]} 17. b4 {[%emt 0:06:46]} a5 {[%emt 0:04:25]} 18. a3 {[%emt 0:03:14]} axb4 {[%emt 0:06:33]} 19. axb4 {[%emt 0:00:21]} Ra4 $11 {[%emt 0:01:28]} 20. Rxa4 {[%emt 0:11:17]} Qxa4 {[%emt 0:00:06]} 21. Rc1 {[%emt 0:00:49]} b5 {[%emt 0:07:20]} 22. Qb3 {[%emt 0:03:48]} Nd5 {[%emt 0:03:44]} 23. Rb1 {[%emt 0:03:05]} Qxb3 {[%emt 0:04:01]} 24. Rxb3 {[%emt 0:02:28]} Ra8 {[%emt 0:01:11]} 25. e4 {[%emt 0:04:09]} Ne7 {[%emt 0:00:24]} 26. Nb1 {[%emt 0:03:34]} Ra1 {[%emt 0:04:57]} 27. Kg2 {[%emt 0:00:53]} f5 {[%emt 0:02:12]} 28. Nc3 {[%emt 0:03:05]} fxe4 {[%emt 0:00:58]} 29. Nxb5 {[%emt 0:01:07]} Nd5 {[%emt 0:00:52]} 30. Nc3 {[%emt 0:02:11]} e3 {[%emt 0:01:14]} 31. fxe3 {[%emt 0:01:05]} Nxe3+ {[%emt 0:00:22]} 32. Kf3 {[%emt 0:01:19]} Nf5 {[%emt 0:00:59]} 33. Nb5 {[%emt 0:04:56]} c6 {[%emt 0:00:18]} 34. g4 {[%emt 0:04:02]} cxb5 {[%emt 0:00:52]} 35. gxf5 {[%emt 0:00:03]} Rf1+ {[%emt 0:00:59]} 36. Kg3 {[%emt 0:01:47]} Rxf5 {[%emt 0:00:32]} 37. Rc3 {[%emt 0:01:14]} Kf7 {[%emt 0:00:31]} 38. Rc7+ {[%emt 0:00:58]} Kf6 {[%emt 0:00:10]} 39. Rb7 {[%emt 0:00:25]} h6 {[%emt 0:00:51]} 40. h4 {[%emt 0:00:00]} g6 {[%emt 0:00:00]} 41. Rh7 {[%emt 0:04:39]} h5 {[%emt 0:05:32]} 42. Rh8 {[%emt 0:01:45]} Rd5 {[%emt 0:01:06]} 43. Rf8+ {[%emt 0:00:56]} Ke7 {[%emt 0:01:51]} 44. Rf4 {[%emt 0:04:04]} Rf5 {[%emt 0:02:12]} 45. Re4 {[%emt 0:00:25]} Kd6 {[%emt 0:00:41]} 46. Re3 {[%emt 0:02:04]} Kd5 {[%emt 0:02:03]} 47. Re1 {[%emt 0:01:43]} g5 {[%emt 0:06:51]} 48. hxg5 {[%emt 0:01:08]} Rxg5+ {[%emt 0:00:08]} 49. Kh3 {[%emt 0:07:44]} Kxd4 {[%emt 0:03:44]} 50. Rxe6 {[%emt 0:00:15]} Kc3 {[%emt 0:00:36]} 51. Re4 {[%emt 0:01:09]} Rg4 {[%emt 0:01:20]} 52. Re5 {[%emt 0:00:59]} Kxb4 {[%emt 0:00:22]} 53. Rxh5 {[%emt 0:00:25]} Rg8 {[%emt 0:00:11]} 54. Rh7 {[%emt 0:00:56]} Kb3 {[%emt 0:00:21]} 55. Rb7 {[%emt 0:00:19]} b4 {[%emt 0:00:09]} 56. Kh4 {[%emt 0:00:11]} Ka3 {[%emt 0:01:05]} 57. Ra7+ {[%emt 0:00:15]} Kb2 {[%emt 0:00:11]} 58. Rb7 {[%emt 0:00:08]} b3 {[%emt 0:00:10]} 59. Rb6 {[%emt 0:00:09]} Ka2 {[%emt 0:00:32]} 60. Ra6+ {[%emt 0:00:04]} Kb1 {[%emt 0:00:13]} 61. Rb6 {[%emt 0:00:07]} b2 {[%emt 0:00:12]} 62. Rb7 {[%emt 0:00:08]} Ra8 {[%emt 0:00:34]} 63. Kg4 {[%emt 0:00:23]} Ka1 {[%emt 0:00:15]} 0-1

[Event "41th GRE-ch Women 2018"]
[Site "Thessaloniki"]
[Date "2018.12.14"]
[Round "3"]
[White "Petraki, Evaggelia"]
[Black "Grapsa, Georgia"]
[Result "1-0"]
[ECO "B92"]
[WhiteElo "1756"]
[BlackElo "2097"]
[Annotator "NA RC"]
[PlyCount "63"]
[EventDate "2018.12.12"]
[EventType "tourn"]
[EventCountry "GRE"]
[SourceTitle "playchess.com"]
[Source "ChessBase"]
[SourceQuality "1"]
[TimeControl "40/5400+30:1800+30"]

1. e4 {[%emt 0:00:00]} c5 {[%emt 0:00:00]} 2. Nf3 {[%emt 0:00:00]} d6 {[%emt 0:00:00]} 3. d4 {[%emt 0:00:00]} cxd4 {[%emt 0:00:00]} 4. Nxd4 {[%emt 0:00:00]} Nf6 {[%emt 0:00:00]} 5. Nc3 {[%emt 0:00:00]} a6 {[%emt 0:00:01]} 6. Be2 {[%emt 0:00:00]} e5 {[%emt 0:00:04]} 7. Nb3 {[%emt 0:00:01]} Be7 {[%emt 0:00:05]} 8. Be3 {[%emt 0:00:04]} Be6 {[%emt 0:00:36]} 9. Qd3 {[%emt 0:00:21]} Nbd7 {[%emt 0:01:01]} 10. Nd5 {[%emt 0:00:36]} Bxd5 {[%emt 0:03:47]} 11. exd5 {[%emt 0:01:03]} Rc8 {[%emt 0:02:32]} 12. c4 {[%emt 0:00:42]} O-O {[%emt 0:02:49]} 13. O-O {[%emt 0:00:17]} a5 {B92: Sicilian Najdorf: 6 Be2} (13... Ne8 14. f3 g6 15. Kh1 Ng7 16. Bg1 Bg5 17. Rad1 h5 18. Nd2 f5 19. b4 h4 20. c5 dxc5 21. d6 cxb4 {1-0 (45) Karjakin,S (2782)-Grischuk,A (2766) Paris 2018}) 14. a4 {[%emt 0:02:19] [#]} Re8 $146 {[%emt 0:07:38]} ({Predecessor:} 14... b6 15. Bd2 Re8 16. Qh3 g6 17. Qe3 Bf8 18. Rfe1 Bg7 19. Rac1 Nb8 20. h4 h5 21. Qf3 {½-½ (21) Vosahlik,J (2596)-Lafarga Santorroman,D (2639) ICCF email 2007}) 15. Rfc1 {[%emt 0:09:58]} Nc5 {[%emt 0:06:03]} (15... g6 $11) 16. Nxc5 {[%emt 0:00:31]} dxc5 {[%emt 0:00:07]} 17. Rf1 {[%emt 0:04:23]} e4 {[%emt 0:07:35]} 18. Qd2 {[%emt 0:02:19]} Qb6 {[%emt 0:05:53]} 19. Bf4 {[%emt 0:06:18]} Rcd8 {[%emt 0:06:07]} 20. Be5 {[%emt 0:05:49]} Bf8 {[%emt 0:08:58]} 21. Bc3 {[%emt 0:04:24]} Ra8 {[%emt 0:00:06]} (21... e3 $1 $11 {keeps the balance.} 22. fxe3 Ne4) 22. Rfd1 {[%emt 0:02:01]} (22. Qe3 $16) 22... Nd7 {[%emt 0:02:06]} 23. Ra3 {[%emt 0:08:58]} Bd6 {[%emt 0:03:22]} 24. Qg5 {[%emt 0:06:09]} Ne5 {[%emt 0:02:50]} 25. Qf5 {[%emt 0:03:18]} (25. Re1 $14) 25... Ng6 {[%emt 0:03:33]} 26. Rb1 $11 {[%emt 0:07:01]} Qc7 {[%emt 0:09:49]} 27. g3 {[%emt 0:02:06]} Ra6 {[%emt 0:02:21]} 28. Re1 {[%emt 0:03:13]} Be5 {[%emt 0:06:13]} 29. Qxe4 Rf6 {[%emt 0:07:26]} 30. Bh5 {[%emt 0:07:55]} Qe7 {[%emt 0:06:19]} 31. Bxg6 {[%emt 0:01:35]} Rxg6 {[%emt 0:00:23]} 32. Qxe5 {[%emt 0:00:42]} 1-0

[Event "41th GRE-ch Women 2018"]
[Site "Thessaloniki"]
[Date "2018.12.15"]
[Round "4"]
[White "Pavlidou, Ekaterini"]
[Black "Androni, Konstantina"]
[Result "1/2-1/2"]
[ECO "A35"]
[WhiteElo "2185"]
[BlackElo "1912"]
[Annotator "NA"]
[PlyCount "216"]
[EventDate "2018.12.12"]
[EventType "tourn"]
[EventCountry "GRE"]
[SourceTitle "playchess.com"]
[Source "ChessBase"]
[SourceQuality "1"]
[TimeControl "40/5400+30:1800+30"]

1. Nf3 {[%emt 0:00:00]} c5 {[%emt 0:06:23]} 2. c4 {[%emt 0:01:38]} Nc6 {[%emt 0:00:41]} 3. Nc3 {[%emt 0:00:52]} Nf6 {[%emt 0:04:12]} 4. g3 {[%emt 0:00:53]} d6 {[%emt 0:01:31]} 5. Bg2 {[%emt 0:00:22]} e5 {[%emt 0:00:37]} 6. d3 {[%emt 0:00:13]} Be7 {[%emt 0:00:32]} 7. O-O {[%emt 0:00:45]} O-O {[%emt 0:03:18]} 8. a3 {[%emt 0:01:59]} Be6 {[%emt 0:02:33]} 9. Bg5 {[%emt 0:01:06]} Qd7 {[%emt 0:06:54]} 10. Rb1 {[%emt 0:04:00]} Ne8 {[%emt 0:08:53]} 11. b4 {[%emt 0:04:32]} f6 {[%emt 0:08:16]} 12. Be3 {[%emt 0:02:15]} Rb8 {[%emt 0:02:11]} 13. bxc5 {[%emt 0:03:44]} dxc5 {[%emt 0:00:14]} 14. Ne1 {[%emt 0:05:18]} f5 {[%emt 0:05:41]} 15. Qa4 {[%emt 0:02:55]} Nf6 {[%emt 0:01:50]} 16. Bg5 {[%emt 0:06:38]} Kh8 {[%emt 0:14:09]} 17. Nc2 {[%emt 0:02:27]} f4 {[%emt 0:07:40]} 18. Bxf6 {[%emt 0:08:09]} Bxf6 {[%emt 0:00:03]} 19. Rfe1 {[%emt 0:01:46]} Bh3 {[%emt 0:01:34]} 20. Ne4 {[%emt 0:02:44]} Be7 {[%emt 0:01:39]} 21. Bh1 {[%emt 0:09:24]} Rf7 {[%emt 0:06:10]} 22. Qb5 {[%emt 0:05:16]} Qf5 {[%emt 0:04:02]} 23. e3 {[%emt 0:12:27]} fxg3 {[%emt 0:00:45]} 24. hxg3 {[%emt 0:00:15]} h5 {[%emt 0:01:23]} 25. Kh2 {[%emt 0:06:57]} h4 {[%emt 0:03:10]} 26. Rg1 {[%emt 0:00:06]} Rbf8 {[%emt 0:06:46]} 27. Qxb7 {[%emt 0:02:37]} Nd8 {[%emt 0:00:39]} 28. Qd5 {[%emt 0:01:06]} Bg4 {[%emt 0:00:32]} 29. f3 {[%emt 0:07:10]} hxg3+ {[%emt 0:00:56]} 30. Rxg3 {[%emt 0:00:06]} Qh5+ {[%emt 0:00:11]} 31. Kg1 {[%emt 0:00:20]} Bxf3 {[%emt 0:00:05]} 32. Bxf3 {[%emt 0:01:35]} Rxf3 {[%emt 0:00:02]} 33. Rg2 {[%emt 0:00:15]} Rh3 {[%emt 0:00:52]} 34. Ng3 {[%emt 0:01:55]} Qg5 {[%emt 0:00:32]} 35. Nf1 {[%emt 0:00:53]} Qh4 {[%emt 0:00:53]} 36. Nh2 {[%emt 0:00:08]} Qh5 {[%emt 0:00:58]} 37. Qd7 {[%emt 0:01:21]} Bg5 {[%emt 0:00:25]} 38. Qg4 {[%emt 0:01:05]} Qxg4 {[%emt 0:00:51]} 39. Nxg4 {[%emt 0:00:06]} Bf6 {[%emt 0:00:37]} 40. Rf1 {[%emt 0:00:00]} Ne6 {[%emt 0:00:00]} 41. Rh2 {[%emt 0:01:29]} Rxh2 {[%emt 0:01:57]} 42. Kxh2 {[%emt 0:02:44]} Rd8 {[%emt 0:03:48]} 43. Ne1 {[%emt 0:01:18]} e4 {[%emt 0:01:22]} 44. dxe4 {[%emt 0:01:11]} Bb2 {[%emt 0:02:21]} 45. a4 {[%emt 0:03:12]} Kg8 {[%emt 0:00:33]} 46. Rf2 {[%emt 0:10:23]} Bc3 {[%emt 0:02:12]} 47. Nf3 {[%emt 0:02:26]} Rb8 {[%emt 0:02:21]} 48. Rc2 {[%emt 0:00:27]} Ba5 {[%emt 0:01:24]} 49. Ra2 {[%emt 0:02:12]} Rb3 {[%emt 0:00:33]} 50. e5 {[%emt 0:03:18]} Rc3 {[%emt 0:05:20]} 51. Nd2 {[%emt 0:00:10]} Bb4 {[%emt 0:00:20]} 52. a5 {[%emt 0:03:44]} a6 {[%emt 0:02:04]} 53. Kg2 {[%emt 0:01:43]} Nd8 {[%emt 0:00:37]} 54. Kf3 {[%emt 0:01:07]} Nc6 {[%emt 0:00:32]} 55. Ke4 {[%emt 0:01:11]} Nxa5 {[%emt 0:00:24]} 56. e6 {[%emt 0:01:11]} Kf8 {[%emt 0:01:36]} 57. Ne5 {[%emt 0:00:09]} Ke7 {[%emt 0:01:09]} 58. Ndf3 {[%emt 0:02:33]} Kxe6 {[%emt 0:00:41]} 59. Rg2 {[%emt 0:01:33]} Nxc4 {[%emt 0:01:01]} 60. Rg6+ {[%emt 0:00:19]} Ke7 {[%emt 0:00:21]} 61. Rxg7+ {[%emt 0:01:23]} Kf8 {[%emt 0:00:27]} 62. Ra7 {[%emt 0:00:46]} Rxe3+ {[%emt 0:03:37]} 63. Kf5 {[%emt 0:00:10]} Nxe5 {[%emt 0:02:05]} 64. Nxe5 {[%emt 0:00:02]} Bc3 {[%emt 0:01:57]} 65. Nd7+ {[%emt 0:01:45]} Ke8 {[%emt 0:00:08]} 66. Nxc5 {[%emt 0:00:24]} Re5+ {[%emt 0:00:46]} 67. Kf4 {[%emt 0:00:09]} Rxc5 {[%emt 0:00:08]} 68. Rxa6 {[%emt 0:00:02]} Ke7 {[%emt 0:01:03]} 69. Ke4 {[%emt 0:00:07]} Be5 {[%emt 0:01:17]} 70. Ra7+ {[%emt 0:00:58]} Ke6 {[%emt 0:00:15]} 71. Ra6+ {[%emt 0:00:05]} Bd6 {[%emt 0:00:06]} 72. Kd4 {[%emt 0:00:12]} Rh5 {[%emt 0:00:25]} 73. Ke4 {[%emt 0:00:16]} Rh4+ {[%emt 0:00:13]} 74. Kf3 {[%emt 0:00:06]} Ke5 {[%emt 0:02:08]} 75. Ra5+ {[%emt 0:00:12]} Kf6 {[%emt 0:00:06]} 76. Ra6 {[%emt 0:00:13]} Rd4 {[%emt 0:01:42]} 77. Ke3 {[%emt 0:00:11]} Rd1 {[%emt 0:00:12]} 78. Ke4 {[%emt 0:00:12]} Ke6 {[%emt 0:00:28]} 79. Rc6 {[%emt 0:00:52]} Ra1 {[%emt 0:00:49]} 80. Rb6 {[%emt 0:00:11]} Ra4+ {[%emt 0:00:05]} 81. Kf3 {[%emt 0:00:10]} Kd5 {[%emt 0:00:07]} 82. Rb5+ {[%emt 0:00:47]} Bc5 {[%emt 0:01:07]} 83. Rb1 {[%emt 0:00:23]} Rd4 {[%emt 0:00:56]} 84. Rb3 {[%emt 0:01:03]} Ke5 {[%emt 0:00:46]} 85. Rb5 {[%emt 0:00:21]} Rf4+ {[%emt 0:00:41]} 86. Kg3 {[%emt 0:00:09]} Rc4 {[%emt 0:00:03]} 87. Kf3 {[%emt 0:00:43]} Kf5 {[%emt 0:01:01]} 88. Rb3 {[%emt 0:00:04]} Rf4+ {[%emt 0:00:15]} 89. Kg3 {[%emt 0:00:58]} Bf2+ {[%emt 0:00:54]} 90. Kg2 {[%emt 0:00:15]} Kg4 {[%emt 0:00:14]} 91. Rb8 {[%emt 0:01:14]} Bh4 {[%emt 0:00:12]} 92. Rg8+ {[%emt 0:00:19]} Bg5 {[%emt 0:00:13]} 93. Ra8 {[%emt 0:00:56]} Rb4 {[%emt 0:00:39]} 94. Ra2 {[%emt 0:00:20]} Rb3 {[%emt 0:00:22]} 95. Kf2 {[%emt 0:01:48]} Bh4+ {[%emt 0:00:48]} 96. Ke2 {[%emt 0:00:21]} Bg3 {[%emt 0:00:46]} 97. Ra4+ {[%emt 0:00:57]} Bf4 {[%emt 0:00:07]} 98. Re4 {[%emt 0:00:16]} Kg3 {[%emt 0:00:26]} 99. Re8 {[%emt 0:00:27]} Rb2+ {[%emt 0:00:10]} 100. Kd3 {[%emt 0:00:04]} Kf3 {[%emt 0:00:11]} 101. Kc3 {[%emt 0:00:51]} Rb7 {[%emt 0:01:09]} 102. Kd4 {[%emt 0:00:32]} Rd7+ {[%emt 0:00:49]} 103. Kc4 {[%emt 0:00:12]} Kg4 {[%emt 0:00:17]} 104. Rf8 {[%emt 0:00:17]} Kf3 {[%emt 0:00:14]} 105. Re8 {[%emt 0:00:05]} Be3 {[%emt 0:00:09]} 106. Rf8+ {[%emt 0:00:13]} Ke2 {[%emt 0:00:06]} 107. Ra8 {[%emt 0:00:54]} Rc7+ {[%emt 0:00:38]} 108. Kd5 {[%emt 0:00:10]} Rc5+ {[%emt 0:00:08]} 1/2-1/2